[Event "Fagernes Chess GM-Swiss 2025"]
[Site "Fagernes"]
[Date "2025.04.13"]
[Round "1.26"]
[White "Den Roover, Nikolay Jorgensen"]
[Black "Moksh Amit Doshi"]
[Result "1/2-1/2"]
[Annotator "ChessBase"]
[ECO "A13"]
[WhiteElo "2004"]
[BlackElo "2369"]
[PlyCount "71"]
[EventDate "2025.04.12"]
[EventCountry "NOR"]
[SourceTitle "playchess.com"]
[Source "ChessBase"]
[SourceQuality "1"]
[TimeControl "40/6000+30:2400+30"]

1. Nf3 {[%emt 0:00:05]} Nf6 {[%emt 0:08:33]} 2. c4 {[%emt 0:04:44]} e6 {[%emt 0:00:19]} 3. g3 {[%emt 0:00:42]} d5 {[%emt 0:00:21]} 4. Bg2 {[%emt 0:01:15]} d4 {[%emt 0:00:24]} 5. d3 {[%emt 0:01:15]} Nc6 {[%emt 0:00:26]} 6. O-O {[%emt 0:00:58]} Bc5 {[%emt 0:00:19]} 7. Qa4 {[%emt 0:26:51]} O-O {[%emt 0:01:25]} 8. Bg5 {[%emt 0:03:41]} h6 {[%emt 0:02:36]} 9. Bxf6 {[%emt 0:01:49]} Qxf6 {[%emt 0:00:07]} 10. Nfd2 {[%emt 0:07:33]} Qe7 {[%emt 0:06:45]} 11. Ne4 {[%emt 0:02:39]} Bb6 {[%emt 0:03:53]} 12. c5 {[%emt 0:08:07]} Bxc5 {[%emt 0:00:30]} 13. Nxc5 {[%emt 0:00:17]} Qxc5 {[%emt 0:00:04]} 14. Bxc6 {[%emt 0:02:50]} bxc6 {[%emt 0:01:37]} 15. Nd2 {[%emt 0:04:08]} Qd5 {[%emt 0:13:29]} 16. Rac1 {[%emt 0:03:34]} Rb8 {[%emt 0:09:08]} 17. Nb3 {[%emt 0:05:36]} Bd7 {[%emt 0:05:21]} 18. Qxa7 {[%emt 0:08:39]} e5 {[%emt 0:02:03]} 19. Qc5 {[%emt 0:10:14]} Qe6 {[%emt 0:00:43]} 20. Rc2 {[%emt 0:05:43]} Rb5 {[%emt 0:05:16]} 21. Qc4 {[%emt 0:00:47]} Ra8 {[%emt 0:11:24]} 22. Nc1 {[%emt 0:08:06]} Qh3 {[%emt 0:03:04]} 23. e4 {[%emt 0:00:51]} Ra6 {[%emt 0:06:11]} 24. Rd2 {[%emt 0:00:46]} Qh5 {[%emt 0:02:56]} 25. f3 {[%emt 0:00:18]} Qg5 {[%emt 0:06:19]} 26. Re2 {[%emt 0:00:17]} Bh3 {[%emt 0:05:21]} 27. Rfe1 {[%emt 0:00:56]} h5 {[%emt 0:00:25]} 28. a4 {[%emt 0:00:43]} Rbb6 {[%emt 0:00:35]} 29. b3 {[%emt 0:01:03]} Be6 {[%emt 0:00:41]} 30. Qc5 {[%emt 0:00:29]} Qf6 {[%emt 0:00:33]} 31. Rf2 {[%emt 0:00:24]} Bxb3 {[%emt 0:00:31]} 32. f4 {[%emt 0:00:19]} Qd6 {[%emt 0:00:47]} 33. Nxb3 {[%emt 0:00:43]} Rxb3 {[%emt 0:00:04]} 34. Qc4 {[%emt 0:00:24]} Qb4 {[%emt 0:06:30]} 35. Qxa6 {[%emt 0:00:01]} Qxe1+ {[%emt 0:00:11]} 36. Kg2 {[%emt 0:00:02]} 1/2-1/2

[Event "Fagernes Chess GM-Swiss 2025"]
[Site "Fagernes"]
[Date "2025.04.13"]
[Round "1.27"]
[White "Melaa, Sondre"]
[Black "Hausken, Andreas Skrede"]
[Result "1-0"]
[Annotator "ChessBase"]
[ECO "A39"]
[WhiteElo "2344"]
[BlackElo "2002"]
[PlyCount "61"]
[EventDate "2025.04.12"]
[EventCountry "NOR"]
[SourceTitle "playchess.com"]
[Source "ChessBase"]
[SourceQuality "1"]
[TimeControl "40/6000+30:2400+30"]

1. c4 {[%emt 0:00:04]} c5 {[%emt 0:01:45]} 2. g3 {[%emt 0:00:19]} g6 {[%emt 0:00:07]} 3. Bg2 {[%emt 0:00:20]} Bg7 {[%emt 0:00:06]} 4. Nc3 {[%emt 0:00:39]} Nc6 {[%emt 0:00:06]} 5. Nf3 {[%emt 0:00:21]} Nf6 {[%emt 0:00:14]} 6. d4 {[%emt 0:00:42]} cxd4 {[%emt 0:00:06]} 7. Nxd4 {[%emt 0:00:07]} O-O {[%emt 0:00:56]} 8. O-O {[%emt 0:01:45]} Ng4 {[%emt 0:11:50]} 9. e3 {[%emt 0:01:09]} Nge5 {[%emt 0:13:47]} 10. b3 {[%emt 0:00:14]} d6 {[%emt 0:01:01]} 11. Bb2 {[%emt 0:10:50]} Bg4 {[%emt 0:03:37]} 12. f3 {[%emt 0:02:08]} Bd7 {[%emt 0:01:18]} 13. Nc2 {[%emt 0:04:20]} Rc8 {[%emt 0:10:20]} 14. Qd2 {[%emt 0:22:27]} a6 {[%emt 0:08:49]} 15. Rab1 {[%emt 0:11:27]} Na5 {[%emt 0:19:58]} 16. Nd4 {[%emt 0:04:57]} Re8 {[%emt 0:12:24]} 17. h3 {[%emt 0:07:04]} Qb6 {[%emt 0:05:12]} 18. Nd5 {[%emt 0:04:23]} Qc5 {[%emt 0:00:23]} 19. Rfc1 {[%emt 0:18:49]} e6 {[%emt 0:08:58]} 20. Nc3 {[%emt 0:00:40]} Nexc4 {[%emt 0:04:10]} 21. bxc4 {[%emt 0:01:18]} Nxc4 {[%emt 0:00:05]} 22. Qd3 {[%emt 0:07:16]} Nxb2 {[%emt 0:02:18]} 23. Rxb2 {[%emt 0:00:16]} Qa3 {[%emt 0:00:10]} 24. Qd2 {[%emt 0:02:21]} e5 {[%emt 0:04:19]} 25. Nde2 {[%emt 0:00:16]} e4 {[%emt 0:00:17]} 26. Rb3 {[%emt 0:01:15]} Qa5 {[%emt 0:00:18]} 27. Nxe4 {[%emt 0:00:14]} Qxd2 {[%emt 0:00:42]} 28. Nxd2 {[%emt 0:00:07]} Ba4 {[%emt 0:00:43]} 29. Rxb7 {[%emt 0:01:55]} Rxc1+ {[%emt 0:00:17]} 30. Nxc1 {[%emt 0:00:06]} Rxe3 {[%emt 0:00:05]} 31. Rb8+ {[%emt 0:01:47]} 1-0

[Event "Fagernes Chess GM-Swiss 2025"]
[Site "Fagernes"]
[Date "2025.04.13"]
[Round "1.28"]
[White "Gasland, Lukas Dominik"]
[Black "Lund, Gunnar"]
[Result "1/2-1/2"]
[Annotator "ChessBase"]
[ECO "D30"]
[WhiteElo "1994"]
[BlackElo "2341"]
[PlyCount "186"]
[EventDate "2025.04.12"]
[EventCountry "NOR"]
[SourceTitle "playchess.com"]
[Source "ChessBase"]
[SourceQuality "1"]
[TimeControl "40/6000+30:2400+30"]

1. Nf3 {[%emt 0:00:34]} d5 {[%emt 0:00:46]} 2. c4 {[%emt 0:00:48]} e6 {[%emt 0:01:59]} 3. d4 {[%emt 0:01:14]} Nf6 {[%emt 0:02:05]} 4. Bg5 {[%emt 0:02:20]} Be7 {[%emt 0:05:56]} 5. cxd5 {[%emt 0:01:44]} exd5 {[%emt 0:01:09]} 6. e3 {[%emt 0:00:09]} c6 {[%emt 0:02:08]} 7. Bd3 {[%emt 0:01:23]} Bg4 {[%emt 0:05:06]} 8. Nbd2 {[%emt 0:05:51]} Nbd7 {[%emt 0:00:24]} 9. Qc2 {[%emt 0:02:53]} Bh5 {[%emt 0:02:20]} 10. O-O {[%emt 0:11:54]} Bg6 {[%emt 0:02:43]} 11. Bxg6 {[%emt 0:11:24]} hxg6 {[%emt 0:00:08]} 12. Rfe1 {[%emt 0:09:13]} O-O {[%emt 0:01:26]} 13. e4 {[%emt 0:05:44]} dxe4 {[%emt 0:03:59]} 14. Nxe4 {[%emt 0:00:28]} Re8 {[%emt 0:02:03]} 15. Nc5 {[%emt 0:05:36]} Bxc5 {[%emt 0:07:30]} 16. Rxe8+ {[%emt 0:01:45]} Qxe8 {[%emt 0:00:01]} 17. dxc5 {[%emt 0:00:11]} Qe4 {[%emt 0:03:56]} 18. Rc1 {[%emt 0:04:20]} Qxc2 {[%emt 0:02:04]} 19. Rxc2 {[%emt 0:00:07]} Nd5 {[%emt 0:00:03]} 20. g3 {[%emt 0:01:57]} f6 {[%emt 0:07:09]} 21. Bd2 {[%emt 0:01:55]} Kf7 {[%emt 0:00:33]} 22. b4 {[%emt 0:00:40]} a6 {[%emt 0:02:21]} 23. Kg2 {[%emt 0:04:18]} Re8 {[%emt 0:03:43]} 24. Rc4 {[%emt 0:00:00]} g5 {[%emt 0:04:59]} 25. h4 {[%emt 0:00:54]} gxh4 {[%emt 0:00:41]} 26. Rxh4 {[%emt 0:00:17]} Ne5 {[%emt 0:03:35]} 27. Nd4 {[%emt 0:05:37]} Ne7 {[%emt 0:11:19]} 28. Re4 {[%emt 0:02:47]} Rd8 {[%emt 0:03:50]} 29. Bf4 {[%emt 0:01:25]} Nd3 {[%emt 0:04:57]} 30. Bd6 {[%emt 0:04:04]} Rd7 {[%emt 0:04:02]} 31. a3 {[%emt 0:01:09]} Nc8 {[%emt 0:05:06]} 32. Bb8 {[%emt 0:04:33]} Ne7 {[%emt 0:03:25]} 33. Bd6 {[%emt 0:02:23]} Nc8 {[%emt 0:01:06]} 34. Bb8 {[%emt 0:01:13]} Rd5 {[%emt 0:00:29]} 35. Nb3 {[%emt 0:01:58]} b6 {[%emt 0:04:32]} 36. cxb6 {[%emt 0:01:01]} Nxb6 {[%emt 0:00:01]} 37. Ba7 {[%emt 0:02:46]} Nc8 {[%emt 0:01:47]} 38. Bc5 {[%emt 0:00:10]} Nxc5 {[%emt 0:01:48]} 39. bxc5 {[%emt 0:00:20]} Rd3 {[%emt 0:00:22]} 40. Rb4 {[%emt 0:00:08]} Ne7 {[%emt 0:01:00]} 41. Rb6 {[%emt 0:42:28]} g5 {[%emt 0:46:07]} 42. Na5 {[%emt 0:07:12]} Rxa3 {[%emt 0:01:03]} 43. Rxa6 {[%emt 0:01:01]} Ke6 {[%emt 0:00:00]} 44. Ra7 {[%emt 0:00:00]} Rc3 {[%emt 0:00:00]} 45. Nb7 {[%emt 0:00:00]} Rd3 {[%emt 0:00:00]} 46. Ra1 {[%emt 0:00:00]} Rd5 {[%emt 0:00:00]} 47. Kf3 {[%emt 0:00:00]} Ng6 {[%emt 0:00:00]} 48. Ke2 {[%emt 0:00:00]} Ne5 {[%emt 0:00:00]} 49. Ra8 {[%emt 0:00:00]} Rd7 {[%emt 0:00:00]} 50. Nd6 {[%emt 0:00:00]} Re7 {[%emt 0:00:00]} 51. f4 {[%emt 0:00:00]} gxf4 {[%emt 0:00:00]} 52. gxf4 {[%emt 0:00:00]} Nd7 {[%emt 0:00:00]} 53. Kf3 {[%emt 0:00:00]} Nxc5 {[%emt 0:00:00]} 54. Ne4 {[%emt 0:00:00]} Nxe4 {[%emt 0:00:00]} 55. Kxe4 {[%emt 0:00:00]} f5+ {[%emt 0:00:00]} 56. Kd4 {[%emt 0:00:00]} Rd7+ {[%emt 0:01:48]} 57. Kc5 {[%emt 0:00:00]} Rd5+ {[%emt 0:00:05]} 58. Kxc6 {[%emt 0:00:00]} Rd4 {[%emt 0:00:01]} 59. Re8+ {[%emt 0:00:00]} Kf7 {[%emt 0:00:42]} 60. Rh8 {[%emt 0:01:10]} Rxf4 {[%emt 0:01:01]} 61. Kd5 {[%emt 0:00:06]} Re4 {[%emt 0:00:10]} 62. Rh6 {[%emt 0:04:29]} Kg7 {[%emt 0:00:01]} 63. Ra6 {[%emt 0:00:11]} Re8 {[%emt 0:00:01]} 64. Kd4 {[%emt 0:00:39]} Kf7 {[%emt 0:00:20]} 65. Kd3 {[%emt 0:00:57]} Kg7 {[%emt 0:01:25]} 66. Kd2 {[%emt 0:00:25]} Re4 {[%emt 0:01:12]} 67. Kd3 {[%emt 0:00:24]} Kf7 {[%emt 0:00:01]} 68. Rb6 {[%emt 0:00:12]} Ke7 {[%emt 0:00:26]} 69. Ra6 {[%emt 0:00:07]} Re1 {[%emt 0:00:08]} 70. Kd2 {[%emt 0:00:10]} Re5 {[%emt 0:00:20]} 71. Kd3 {[%emt 0:00:28]} Kf7 {[%emt 0:00:03]} 72. Rb6 {[%emt 0:00:08]} Kg7 {[%emt 0:01:09]} 73. Ra6 {[%emt 0:00:06]} Re8 {[%emt 0:00:03]} 74. Rb6 {[%emt 0:00:12]} Re5 {[%emt 0:00:50]} 75. Ra6 {[%emt 0:00:18]} Kg8 {[%emt 0:00:28]} 76. Ra7 {[%emt 0:00:16]} Kf8 {[%emt 0:00:09]} 77. Rb7 {[%emt 0:00:06]} Ke8 {[%emt 0:00:09]} 78. Ra7 {[%emt 0:00:05]} Kd8 {[%emt 0:00:14]} 79. Rb7 {[%emt 0:00:27]} Re7 {[%emt 0:00:06]} 80. Rxe7 {[%emt 0:00:16]} Kxe7 {[%emt 0:00:02]} 81. Ke3 {[%emt 0:00:08]} Kf7 {[%emt 0:00:04]} 82. Kf3 {[%emt 0:00:05]} Kg7 {[%emt 0:00:04]} 83. Kg3 {[%emt 0:00:05]} Kg6 {[%emt 0:00:02]} 84. Kf4 {[%emt 0:00:13]} Kf6 {[%emt 0:00:03]} 85. Kf3 {[%emt 0:00:21]} Kg5 {[%emt 0:00:04]} 86. Kg3 {[%emt 0:00:06]} f4+ {[%emt 0:00:03]} 87. Kf3 {[%emt 0:00:13]} Kf5 {[%emt 0:00:01]} 88. Kf2 {[%emt 0:00:09]} Kg4 {[%emt 0:00:04]} 89. Kg2 {[%emt 0:00:10]} f3+ {[%emt 0:00:04]} 90. Kf2 {[%emt 0:00:07]} Kf4 {[%emt 0:00:03]} 91. Kf1 {[%emt 0:00:10]} Kg3 {[%emt 0:00:04]} 92. Kg1 {[%emt 0:00:04]} f2+ {[%emt 0:00:05]} 93. Kf1 {[%emt 0:00:03]} Kf3 {[%emt 0:00:04]} 1/2-1/2

[Event "Fagernes Chess GM-Swiss 2025"]
[Site "Fagernes"]
[Date "2025.04.13"]
[Round "1.29"]
[White "Grave, Jacob Templen"]
[Black "Lilliehook, Victor"]
[Result "1-0"]
[Annotator "ChessBase"]
[ECO "E04"]
[WhiteElo "2337"]
[BlackElo "1993"]
[PlyCount "43"]
[EventDate "2025.04.12"]
[EventCountry "NOR"]
[SourceTitle "playchess.com"]
[Source "ChessBase"]
[SourceQuality "1"]
[TimeControl "40/6000+30:2400+30"]

1. d4 {[%emt 0:00:06]} d5 {[%emt 0:00:04]} 2. c4 {[%emt 0:00:13]} e6 {[%emt 0:00:01]} 3. g3 {[%emt 0:06:25]} Nf6 {[%emt 0:00:13]} 4. Bg2 {[%emt 0:00:06]} dxc4 {[%emt 0:00:10]} 5. Nf3 {[%emt 0:00:15]} Bb4+ {[%emt 0:00:04]} 6. Bd2 {[%emt 0:01:30]} a5 {[%emt 0:00:22]} 7. a3 {[%emt 0:00:30]} Bxd2+ {[%emt 0:03:38]} 8. Nbxd2 {[%emt 0:00:25]} b5 {[%emt 0:02:28]} 9. b3 {[%emt 0:00:06]} cxb3 {[%emt 0:01:37]} 10. Qxb3 {[%emt 0:00:06]} c6 {[%emt 0:01:43]} 11. O-O {[%emt 0:00:08]} O-O {[%emt 0:01:18]} 12. Rfc1 {[%emt 0:02:01]} Ba6 {[%emt 0:08:16]} 13. e3 {[%emt 0:14:14]} Nd5 {[%emt 0:09:35]} 14. Ne5 {[%emt 0:06:48]} Qb6 {[%emt 0:06:33]} 15. Ne4 {[%emt 0:06:21]} b4 {[%emt 0:05:58]} 16. Nc5 {[%emt 0:03:03]} Rd8 {[%emt 0:09:43]} 17. axb4 {[%emt 0:08:20]} axb4 {[%emt 0:02:08]} 18. Ra4 {[%emt 0:05:18]} Bb7 {[%emt 0:06:10]} 19. Bxd5 {[%emt 0:01:13]} Rxd5 {[%emt 0:04:38]} 20. Rxb4 {[%emt 0:00:13]} Rxc5 {[%emt 0:00:13]} 21. Rxb6 {[%emt 0:01:42]} Rxc1+ {[%emt 0:00:03]} 22. Kg2 {[%emt 0:00:04]} 1-0

[Event "Fagernes Chess GM-Swiss 2025"]
[Site "Fagernes"]
[Date "2025.04.13"]
[Round "1.30"]
[White "Haugen, Lars Tormod"]
[Black "Kreken, Eivind Grunt"]
[Result "1/2-1/2"]
[Annotator "ChessBase"]
[ECO "B48"]
[WhiteElo "1988"]
[BlackElo "2326"]
[PlyCount "130"]
[EventDate "2025.04.12"]
[EventCountry "NOR"]
[SourceTitle "playchess.com"]
[Source "ChessBase"]
[SourceQuality "1"]
[TimeControl "40/6000+30:2400+30"]

1. e4 {[%emt 0:08:15]} c5 {[%emt 0:00:36]} 2. Nf3 {[%emt 0:00:35]} e6 {[%emt 0:00:10]} 3. d4 {[%emt 0:00:13]} cxd4 {[%emt 0:00:06]} 4. Nxd4 {[%emt 0:00:02]} Nc6 {[%emt 0:01:29]} 5. Nc3 {[%emt 0:00:22]} Qc7 {[%emt 0:00:32]} 6. Be3 {[%emt 0:02:04]} a6 {[%emt 0:00:19]} 7. Qf3 {[%emt 0:04:01]} Ne5 {[%emt 0:02:24]} 8. Qg3 {[%emt 0:01:48]} Bd6 {[%emt 0:01:03]} 9. f4 {[%emt 0:20:06]} Ng6 {[%emt 0:00:25]} 10. e5 {[%emt 0:14:43]} Bb4 {[%emt 0:00:32]} 11. Bd2 {[%emt 0:06:58]} d6 {[%emt 0:01:47]} 12. a3 {[%emt 0:09:47]} Bxc3 {[%emt 0:04:03]} 13. Bxc3 {[%emt 0:04:44]} dxe5 {[%emt 0:02:02]} 14. fxe5 {[%emt 0:01:22]} N8e7 {[%emt 0:04:57]} 15. Nf3 {[%emt 0:17:48]} Nd5 {[%emt 0:05:32]} 16. Bd4 {[%emt 0:01:23]} Qxc2 {[%emt 0:02:23]} 17. Rd1 {[%emt 0:01:47]} Qe4+ {[%emt 0:05:55]} 18. Kf2 {[%emt 0:00:58]} Ndf4 {[%emt 0:05:49]} 19. Be3 {[%emt 0:02:41]} Nd5 {[%emt 0:01:20]} 20. Bd4 {[%emt 0:00:43]} Bd7 {[%emt 0:01:56]} 21. Bd3 {[%emt 0:02:23]} Qf4 {[%emt 0:00:23]} 22. Rhe1 {[%emt 0:01:05]} Bc6 {[%emt 0:10:19]} 23. Be4 {[%emt 0:00:59]} O-O {[%emt 0:01:43]} 24. Bc5 {[%emt 0:02:52]} Rfd8 {[%emt 0:06:19]} 25. Qxf4 {[%emt 0:02:27]} Ndxf4 {[%emt 0:04:32]} 26. Bxc6 {[%emt 0:00:41]} bxc6 {[%emt 0:02:17]} 27. Bd6 {[%emt 0:00:48]} Rac8 {[%emt 0:03:20]} 28. g3 {[%emt 0:00:21]} Nd5 {[%emt 0:01:17]} 29. Rc1 {[%emt 0:00:29]} f6 {[%emt 0:07:46]} 30. Rc5 {[%emt 0:01:31]} Kf7 {[%emt 0:07:06]} 31. Rec1 {[%emt 0:00:36]} Nde7 {[%emt 0:02:36]} 32. exf6 {[%emt 0:01:14]} gxf6 {[%emt 0:01:13]} 33. Bxe7 {[%emt 0:00:18]} Nxe7 {[%emt 0:00:07]} 34. R1c4 {[%emt 0:00:36]} Rb8 {[%emt 0:03:32]} 35. b4 {[%emt 0:00:19]} e5 {[%emt 0:01:06]} 36. Ke2 {[%emt 0:00:32]} Rb5 {[%emt 0:03:04]} 37. Nd2 {[%emt 0:00:36]} Rd5 {[%emt 0:08:55]} 38. Nb3 {[%emt 0:00:21]} Rdxc5 {[%emt 0:02:23]} 39. Nxc5 {[%emt 0:00:21]} a5 {[%emt 0:00:55]} 40. bxa5 {[%emt 0:00:56]} Rxa5 {[%emt 0:00:23]} 41. a4 {[%emt 0:01:08]} Nf5 {[%emt 0:03:20]} 42. Nb3 {[%emt 0:02:15]} Ra6 {[%emt 0:00:54]} 43. a5 {[%emt 0:11:43]} Ke7 {[%emt 0:04:35]} 44. Kd3 {[%emt 0:04:00]} h5 {[%emt 0:08:05]} 45. Kc3 {[%emt 0:02:24]} Nd4 {[%emt 0:06:30]} 46. Nxd4 {[%emt 0:03:23]} exd4+ {[%emt 0:00:05]} 47. Kxd4 {[%emt 0:00:31]} Rxa5 {[%emt 0:00:14]} 48. Rxc6 {[%emt 0:00:31]} Ra2 {[%emt 0:00:17]} 49. h4 {[%emt 0:02:50]} Ra3 {[%emt 0:01:10]} 50. Rc5 {[%emt 0:00:59]} Rxg3 {[%emt 0:00:24]} 51. Rxh5 {[%emt 0:00:05]} Ke6 {[%emt 0:00:19]} 52. Ke4 {[%emt 0:00:50]} Ra3 {[%emt 0:00:18]} 53. Kf4 {[%emt 0:01:00]} Rb3 {[%emt 0:00:25]} 54. Rh8 {[%emt 0:01:02]} Rb4+ {[%emt 0:00:08]} 55. Kg3 {[%emt 0:01:16]} Kf5 {[%emt 0:01:20]} 56. Rh5+ {[%emt 0:02:53]} Ke4 {[%emt 0:00:43]} 57. Rh8 {[%emt 0:01:11]} Rb3+ {[%emt 0:00:32]} 58. Kf2 {[%emt 0:03:28]} Kf4 {[%emt 0:01:19]} 59. h5 {[%emt 0:03:30]} f5 {[%emt 0:00:28]} 60. h6 {[%emt 0:00:23]} Rb2+ {[%emt 0:00:45]} 61. Kg1 {[%emt 0:00:48]} Kf3 {[%emt 0:00:52]} 62. Rf8 {[%emt 0:01:20]} Rg2+ {[%emt 0:01:54]} 63. Kh1 {[%emt 0:00:36]} Rg5 {[%emt 0:00:45]} 64. h7 {[%emt 0:02:32]} Rh5+ {[%emt 0:00:02]} 65. Kg1 {[%emt 0:00:06]} Rxh7 {[%emt 0:00:09]} 1/2-1/2

[Event "Fagernes Chess GM-Swiss 2025"]
[Site "Fagernes"]
[Date "2025.04.13"]
[Round "1.31"]
[White "Adharsh K"]
[Black "Halvorsen, Benjamin"]
[Result "1-0"]
[Annotator "ChessBase"]
[ECO "C54"]
[WhiteElo "2317"]
[BlackElo "1966"]
[PlyCount "63"]
[EventDate "2025.04.12"]
[EventCountry "NOR"]
[SourceTitle "playchess.com"]
[Source "ChessBase"]
[SourceQuality "1"]
[TimeControl "40/6000+30:2400+30"]

1. e4 {[%emt 0:03:26]} e5 {[%emt 0:00:32]} 2. Nf3 {[%emt 0:00:06]} Nc6 {[%emt 0:00:05]} 3. Bc4 {[%emt 0:00:06]} Nf6 {[%emt 0:00:43]} 4. d3 {[%emt 0:00:13]} Bc5 {[%emt 0:00:46]} 5. O-O {[%emt 0:00:21]} d6 {[%emt 0:00:44]} 6. c3 {[%emt 0:00:10]} a6 {[%emt 0:00:48]} 7. a4 {[%emt 0:00:21]} Ba7 {[%emt 0:00:50]} 8. Nbd2 {[%emt 0:00:54]} Nh5 {[%emt 0:00:39]} 9. Re1 {[%emt 0:03:17]} Nf4 {[%emt 0:00:10]} 10. Nf1 {[%emt 0:00:06]} g5 {[%emt 0:00:32]} 11. Be3 {[%emt 0:02:33]} g4 {[%emt 0:02:14]} 12. N3d2 {[%emt 0:00:20]} h5 {[%emt 0:01:05]} 13. b4 {[%emt 0:19:04]} Qg5 {[%emt 0:22:58]} 14. Bxa7 {[%emt 0:13:14]} Rxa7 {[%emt 0:01:40]} 15. Ne3 {[%emt 0:01:23]} h4 {[%emt 0:08:43]} 16. Ndf1 {[%emt 0:03:47]} Ne7 {[%emt 0:16:04]} 17. b5 {[%emt 0:14:55]} axb5 {[%emt 0:09:12]} 18. axb5 {[%emt 0:00:54]} Rxa1 {[%emt 0:00:21]} 19. Qxa1 {[%emt 0:00:05]} O-O {[%emt 0:13:34]} 20. d4 {[%emt 0:16:56]} Kg7 {[%emt 0:05:54]} 21. b6 {[%emt 0:13:28]} f5 {[%emt 0:08:19]} 22. exf5 {[%emt 0:02:31]} exd4 {[%emt 0:00:32]} 23. cxd4 {[%emt 0:00:33]} d5 {[%emt 0:01:16]} 24. Bb3 {[%emt 0:06:23]} c6 {[%emt 0:00:52]} 25. Qa3 {[%emt 0:01:53]} Nxf5 {[%emt 0:03:10]} 26. Nxf5+ {[%emt 0:00:28]} Qxf5 {[%emt 0:00:51]} 27. Qe7+ {[%emt 0:00:56]} Rf7 {[%emt 0:00:47]} 28. Qxh4 {[%emt 0:00:51]} Be6 {[%emt 0:09:07]} 29. Qg3 {[%emt 0:04:38]} Nd3 {[%emt 0:00:50]} 30. Bc2 {[%emt 0:00:23]} Nxe1 {[%emt 0:01:34]} 31. Bxf5 {[%emt 0:00:05]} Bxf5 {[%emt 0:00:09]} 32. Qe5+ {[%emt 0:00:04]} 1-0

[Event "Fagernes Chess GM-Swiss 2025"]
[Site "Fagernes"]
[Date "2025.04.13"]
[Round "1.32"]
[White "Ashwath Kaushik"]
[Black "Vijayakumar, Rishi"]
[Result "0-1"]
[Annotator "ChessBase"]
[ECO "E14"]
[WhiteElo "1958"]
[BlackElo "2317"]
[PlyCount "66"]
[EventDate "2025.04.12"]
[EventCountry "NOR"]
[SourceTitle "playchess.com"]
[Source "ChessBase"]
[SourceQuality "1"]
[TimeControl "40/6000+30:2400+30"]

1. d4 {[%emt 0:01:36]} Nf6 {[%emt 0:00:13]} 2. Nf3 {[%emt 0:00:12]} d5 {[%emt 0:00:06]} 3. c4 {[%emt 0:00:09]} e6 {[%emt 0:00:07]} 4. e3 {[%emt 0:00:08]} Be7 {[%emt 0:06:52]} 5. b3 {[%emt 0:01:25]} O-O {[%emt 0:00:23]} 6. Bd3 {[%emt 0:00:14]} dxc4 {[%emt 0:00:31]} 7. bxc4 {[%emt 0:00:23]} c5 {[%emt 0:00:11]} 8. O-O {[%emt 0:03:01]} b6 {[%emt 0:05:35]} 9. Bb2 {[%emt 0:02:39]} Bb7 {[%emt 0:05:53]} 10. Nbd2 {[%emt 0:01:30]} Nc6 {[%emt 0:02:34]} 11. Rc1 {[%emt 0:01:44]} Qc7 {[%emt 0:12:10]} 12. Qe2 {[%emt 0:03:01]} Rfd8 {[%emt 0:00:47]} 13. Rfd1 {[%emt 0:01:57]} Rd7 {[%emt 0:12:32]} 14. Nb3 {[%emt 0:07:42]} a5 {[%emt 0:10:13]} 15. a4 {[%emt 0:15:10]} Nb4 {[%emt 0:01:54]} 16. Ne5 {[%emt 0:03:38]} Nxd3 {[%emt 0:01:49]} 17. Rxd3 {[%emt 0:04:58]} Rdd8 {[%emt 0:04:32]} 18. Rcd1 {[%emt 0:05:44]} Be4 {[%emt 0:15:07]} 19. R3d2 {[%emt 0:02:20]} cxd4 {[%emt 0:00:31]} 20. Bxd4 {[%emt 0:09:26]} Bb4 {[%emt 0:01:07]} 21. Rb2 {[%emt 0:02:32]} Nd7 {[%emt 0:04:36]} 22. Nxd7 {[%emt 0:04:37]} Rxd7 {[%emt 0:01:34]} 23. f3 {[%emt 0:05:37]} Bc6 {[%emt 0:06:07]} 24. c5 {[%emt 0:05:18]} e5 {[%emt 0:02:33]} 25. cxb6 {[%emt 0:01:55]} Qd6 {[%emt 0:02:19]} 26. Rc1 {[%emt 0:01:09]} exd4 {[%emt 0:00:12]} 27. Nxd4 {[%emt 0:00:13]} Bb7 {[%emt 0:02:18]} 28. Qb5 {[%emt 0:00:26]} g6 {[%emt 0:00:26]} 29. Rbc2 {[%emt 0:00:22]} Re8 {[%emt 0:03:27]} 30. Rc7 {[%emt 0:00:42]} Ree7 {[%emt 0:00:16]} 31. Rxb7 {[%emt 0:05:42]} Rxb7 {[%emt 0:00:09]} 32. Qg5 {[%emt 0:00:30]} Qe5 {[%emt 0:01:08]} 33. Qh6 {[%emt 0:01:17]} Qxe3+ {[%emt 0:00:09]} 0-1

[Event "Fagernes Chess GM-Swiss 2025"]
[Site "Fagernes"]
[Date "2025.04.13"]
[Round "1.33"]
[White "Myagmarsuren, Evsuld"]
[Black "Strand, Amund Pihl"]
[Result "1-0"]
[Annotator "ChessBase"]
[ECO "B45"]
[WhiteElo "2305"]
[BlackElo "1914"]
[PlyCount "79"]
[EventDate "2025.04.12"]
[EventCountry "NOR"]
[SourceTitle "playchess.com"]
[Source "ChessBase"]
[SourceQuality "1"]
[TimeControl "40/6000+30:2400+30"]

1. e4 {[%emt 0:00:01]} c5 {[%emt 0:00:13]} 2. Nf3 {[%emt 0:00:04]} e6 {[%emt 0:00:07]} 3. d4 {[%emt 0:00:02]} cxd4 {[%emt 0:00:11]} 4. Nxd4 {[%emt 0:00:03]} Nf6 {[%emt 0:00:36]} 5. Nc3 {[%emt 0:00:04]} Nc6 {[%emt 0:00:12]} 6. g3 {[%emt 0:02:10]} Bb4 {[%emt 0:05:33]} 7. Bg2 {[%emt 0:00:39]} O-O {[%emt 0:08:39]} 8. O-O {[%emt 0:00:50]} d6 {[%emt 0:11:19]} 9. Nxc6 {[%emt 0:12:02]} bxc6 {[%emt 0:00:11]} 10. e5 {[%emt 0:02:02]} Nd5 {[%emt 0:10:05]} 11. Nxd5 {[%emt 0:00:16]} cxd5 {[%emt 0:08:40]} 12. Qg4 {[%emt 0:00:14]} Bc5 {[%emt 0:12:48]} 13. Bh6 {[%emt 0:01:10]} g6 {[%emt 0:00:16]} 14. Bxf8 {[%emt 0:00:44]} Qxf8 {[%emt 0:01:04]} 15. exd6 {[%emt 0:00:23]} Qxd6 {[%emt 0:01:17]} 16. a3 {[%emt 0:01:24]} Qb6 {[%emt 0:17:58]} 17. c4 {[%emt 0:04:51]} Qxb2 {[%emt 0:07:10]} 18. Qf4 {[%emt 0:02:12]} Qb8 {[%emt 0:07:09]} 19. Qg5 {[%emt 0:07:09]} Ba6 {[%emt 0:05:49]} 20. Rfb1 {[%emt 0:06:30]} Qd8 {[%emt 0:01:42]} 21. Qf4 {[%emt 0:04:03]} Bd6 {[%emt 0:04:35]} 22. Qe3 {[%emt 0:01:43]} Bxc4 {[%emt 0:00:55]} 23. Rb7 {[%emt 0:01:50]} Qf6 {[%emt 0:03:47]} 24. Rab1 {[%emt 0:01:07]} a5 {[%emt 0:01:03]} 25. h4 {[%emt 0:01:16]} h5 {[%emt 0:00:25]} 26. Rd7 {[%emt 0:06:44]} Be5 {[%emt 0:01:11]} 27. Rbb7 {[%emt 0:03:27]} Rf8 {[%emt 0:00:23]} 28. Qg5 {[%emt 0:01:53]} Qxg5 {[%emt 0:00:40]} 29. hxg5 {[%emt 0:00:05]} a4 {[%emt 0:00:25]} 30. Bh3 {[%emt 0:01:10]} d4 {[%emt 0:01:02]} 31. f4 {[%emt 0:00:30]} Bh8 {[%emt 0:00:00]} 32. Bg2 {[%emt 0:10:36]} Bb3 {[%emt 0:00:20]} 33. Kf2 {[%emt 0:00:47]} e5 {[%emt 0:00:34]} 34. Bd5 {[%emt 0:00:42]} Bxd5 {[%emt 0:00:33]} 35. Rxd5 {[%emt 0:00:04]} exf4 {[%emt 0:00:35]} 36. gxf4 {[%emt 0:00:06]} f6 {[%emt 0:00:28]} 37. Rd6 {[%emt 0:00:46]} Rf7 {[%emt 0:00:26]} 38. Rd8+ {[%emt 0:00:28]} Rf8 {[%emt 0:00:19]} 39. Rxf8+ {[%emt 0:00:04]} Kxf8 {[%emt 0:00:17]} 40. Rb8+ {[%emt 0:00:03]} 1-0